fUSD/lending_fUSD_20250904
["ID","MTS","AMOUNT","RATE_DAILY","PERIOD"]
[383563771,1756990329179,-2135.57,0.00025205,2]
[383563772,1756990329189,-1227.09,0.00025205,2]
[383563773,1756990329198,-625.05,0.00025205,2]
[383563774,1756990329208,-474.56,0.00025205,2]
[383563775,1756990329218,-749.93,0.00025205,2]
[383563776,1756990329227,-400.0,0.00025205,2]
[383563777,1756990329237,-638.66,0.00025205,2]
[383563778,1756990329246,-508.97,0.00025205,2]
[383563779,1756990329255,-400.0,0.00025205,2]
[383563780,1756990329265,-400.0,0.00025205,2]
[383563781,1756990329274,-400.0,0.00025205,2]
[383563782,1756990329284,-400.0,0.00025205,2]
[383563783,1756990329295,-3593.96,0.00025205,2]
[383563784,1756990329304,-1070.95,0.00025205,2]
[383563785,1756990329316,-400.0,0.00025205,2]
[383563786,1756990329326,-3019.97,0.00025205,2]
[383563787,1756990329335,-2175.07,0.00025205,2]
[383563788,1756990329344,-400.0,0.00025205,2]
[383563789,1756990329353,-400.0,0.00025205,2]
[383563790,1756990329362,-400.0,0.00025205,2]
[383563791,1756990329371,-400.0,0.00025205,2]
[383563792,1756990329381,-400.0,0.00025205,2]
[383563793,1756990329391,-2082.36,0.00025205,2]
[383563794,1756990329401,-400.0,0.00025205,2]
[383563795,1756990329410,-400.0,0.00025205,2]
[383563796,1756990329419,-970.38,0.00025205,2]
[383563797,1756990329429,-1127.96,0.00025205,2]
[383563798,1756990329440,-2243.08,0.00025205,2]
[383563799,1756990329449,-1735.62,0.00025205,2]
[383563800,1756990329459,-1045.07,0.00025205,2]
[383563801,1756990329468,-237.55283731,0.00025205,2]
[383563802,1756990329478,-731.72,0.00025205,2]
[383563803,1756990329488,-400.0,0.00025205,2]
[383563804,1756990329498,-400.0,0.00025205,2]
[383563805,1756990329509,-998.96,0.00025205,2]
[383563806,1756990329519,-400.0,0.00025205,2]
[383563807,1756990329529,-709.73,0.00025205,2]
[383563808,1756990329539,-376.50416292,0.00025205,2]
[383563809,1756990329550,-2831.28,0.00025205,2]
[383563810,1756990329560,-3039.71,0.00025205,2]
[383563811,1756990329570,-898.29,0.00025205,2]
[383563812,1756990329579,-1689.73,0.00025205,2]
[383563813,1756990329589,-454.51,0.00025205,2]
[383563814,1756990329598,-449.75,0.00025205,2]
[383563815,1756990329607,-402.85,0.00025205,2]
[383563816,1756990329616,-435.81,0.00025205,2]
[383563817,1756990329626,-579.58,0.00025205,2]
[383563818,1756990329635,-400.0,0.00025205,2]
[383563819,1756990329645,-400.0,0.00025205,2]
[383563820,1756990329656,-996.93,0.00025205,2]
[383563821,1756990329665,-1061.82,0.00025205,2]
[383563822,1756990329675,-400.0,0.00025205,2]
[383563823,1756990329685,-608.48,0.00025205,2]
[383563824,1756990329695,-1216.81,0.00025205,2]
[383563825,1756990329705,-2520.02,0.00025205,2]
[383563826,1756990329714,-400.0,0.00025205,2]
[383563827,1756990329724,-1569.91,0.00025205,2]
[383563828,1756990329733,-400.0,0.00025205,2]
[383563829,1756990329743,-1782.09,0.00025205,2]
[383563830,1756990329753,-247.25183141,0.00025205,2]
[383563831,1756990329763,-400.0,0.00025205,2]
[383563832,1756990329773,-1565.66,0.00025205,2]
[383563833,1756990329782,-967.5,0.00025205,2]
[383563834,1756990329792,-1736.13,0.00025205,2]
[383563835,1756990329802,-841.07,0.00025205,2]
[383563836,1756990329811,-400.0,0.00025205,2]
[383563837,1756990329821,-400.0,0.00025205,2]
[383563838,1756990329830,-400.0,0.00025205,2]
[383563839,1756990329840,-400.0,0.00025205,2]
[383563840,1756990329850,-941.19,0.00025205,2]
[383563841,1756990329859,-1999.99,0.00025205,2]
[383563842,1756990329869,-656.44,0.00025205,2]
[383563843,1756990329879,-387.42367998,0.00025205,2]
[383563844,1756990329889,-400.0,0.00025205,2]
[383563845,1756990329898,-400.0,0.00025205,2]
[383563846,1756990329909,-400.0,0.00025205,2]
[383563847,1756990329919,-1565.3,0.00025205,2]
[383563848,1756990329929,-1135.36,0.00025205,2]
[383563849,1756990329943,-311.17238053,0.00025205,2]
[383563850,1756990329952,-455.15,0.00025205,2]
[383563851,1756990329962,-3100.45,0.00025205,2]
[383563852,1756990329972,-708.51,0.00025205,2]
[383563853,1756990329983,-400.0,0.00025205,2]
[383563854,1756990329994,-945.65,0.00025205,2]
[383563855,1756990330003,-459.56,0.00025205,2]
[383563856,1756990330015,-742.75,0.00025205,2]
[383563857,1756990330025,-400.0,0.00025205,2]
[383563858,1756990330036,-400.0,0.00025205,2]
[383563859,1756990330045,-500.0,0.00025206,2]
[383563860,1756990330055,-400.0,0.00025287,2]
[383563861,1756990330066,-400.0,0.00025287,2]
[383563862,1756990330078,-400.0,0.00025287,2]
[383563863,1756990330088,-6679.88,0.00025287,2]
[383563864,1756990330098,-956.54,0.00025287,2]
[383563865,1756990330109,-484.69,0.00025287,2]
[383563866,1756990330120,-471.21,0.00025287,2]
[383563867,1756990330131,-848.28,0.00025287,2]
[383563868,1756990330142,-400.0,0.00025287,2]
[383563869,1756990330154,-876.27,0.00025287,2]
[383563870,1756990330164,-1841.8394371,0.000253,2]
[383563871,1756990330173,-500.0,0.00025343,2]
[383563872,1756990330182,-337.49,0.00025395,2]
[383563873,1756990330192,-409.65,0.00025396,2]
[383563874,1756990330202,-409.65,0.00025396,2]
[383563875,1756990330211,-409.65,0.00025396,2]
[383563876,1756990330221,-150.0,0.00025396,2]
[383563877,1756990330231,-166.53,0.00025396,2]
[383563878,1756990330241,-409.65,0.00025396,2]
[383563879,1756990330251,-174.25,0.00025396,2]
[383563880,1756990330260,-541.14,0.00025396,2]
[383563881,1756990330270,-409.65,0.00025396,2]
[383563882,1756990330279,-166.53,0.00025396,2]
[383563883,1756990330289,-166.53,0.00025396,2]
[383563884,1756990330298,-166.53,0.00025396,2]
[383563885,1756990330307,-174.25,0.00025396,2]
[383563886,1756990330317,-174.25,0.00025396,2]
[383563887,1756990330327,-595.06,0.00025396,2]
[383563888,1756990330336,-347.26,0.00025396,2]
[383563889,1756990330347,-409.65,0.00025396,2]
[383563890,1756990330356,-150.0,0.00025396,2]
[383563891,1756990330366,-409.65,0.00025396,2]
[383563892,1756990330375,-331.91,0.00025396,2]
[383563893,1756990330385,-819.3,0.00025396,2]
[383563894,1756990330395,-409.65,0.00025396,2]
[383563895,1756990330412,-600.0,0.00025398,2]
[383563896,1756990330422,-137242.43,0.000254,7]
[383563897,1756990330431,-422.37,0.00025479,2]
[383563898,1756990330441,-400.0,0.00025479,2]
[383563899,1756990330450,-400.0,0.00025479,2]
[383563900,1756990330459,-492.66,0.00025479,2]
[383563901,1756990330469,-400.0,0.00025479,2]
[383563902,1756990330478,-400.0,0.00025479,2]
[383563903,1756990330488,-400.0,0.00025479,2]
[383563904,1756990330497,-400.0,0.00025479,2]
[383563905,1756990330506,-400.0,0.00025479,2]
[383563906,1756990330516,-204.850015,0.00025479,2]
[383563907,1756990330526,-237.602869,0.00025479,2]
[383563908,1756990330536,-412.66,0.00025479,2]
[383563909,1756990330546,-761.63,0.00025479,2]
[383563910,1756990330555,-1219.37,0.00025479,2]
[383563911,1756990330566,-400.0,0.00025479,2]
[383563912,1756990330577,-661.99,0.00025479,2]
[383563913,1756990330587,-575.08,0.00025479,2]
[383563914,1756990330597,-400.0,0.00025479,2]
[383563915,1756990330607,-348.82537819,0.00025479,2]
[383563916,1756990330617,-411.91,0.00025479,2]
[383563917,1756990330626,-522.51830879,0.00025479,2]
[383563918,1756990330636,-334.29259955,0.00025479,2]
[383563919,1756990330647,-400.0,0.00025479,2]
[383563920,1756990330658,-400.0,0.00025479,2]
[383563921,1756990330668,-311.1545901,0.00025479,2]
[383563922,1756990330678,-400.0,0.00025479,2]
[383563923,1756990330688,-400.0,0.00025479,2]
[383563924,1756990330700,-400.0,0.00025479,2]
[383563925,1756990330710,-400.0,0.00025479,2]
[383563926,1756990330720,-400.0,0.00025479,2]
[383563927,1756990330730,-402.8,0.00025479,2]
[383563928,1756990330741,-400.0,0.00025479,2]
[383563929,1756990330751,-414.4,0.00025479,2]
[383563930,1756990330761,-400.0,0.00025479,2]
[383563931,1756990330772,-400.0,0.00025479,2]
[383563932,1756990330782,-236.2366444,0.00025479,2]
[383563933,1756990330792,-400.0,0.00025479,2]
[383563934,1756990330803,-400.0,0.00025479,2]
[383563935,1756990330813,-400.0,0.00025479,2]
[383563936,1756990330823,-463.59,0.00025479,2]
[383563937,1756990330833,-400.0,0.00025479,2]
[383563938,1756990330843,-282.47422794,0.00025479,2]
[383563939,1756990330853,-423.94,0.00025479,2]
[383563940,1756990330862,-495.23,0.00025479,2]
[383563941,1756990330872,-565.94,0.00025479,2]
[383563942,1756990330882,-445.17095302,0.00025479,2]
[383563943,1756990330891,-400.0,0.00025479,2]
[383563944,1756990330902,-400.0,0.00025479,2]
[383563945,1756990330911,-400.0,0.00025479,2]
[383563946,1756990330921,-466.1,0.00025479,2]
[383563947,1756990330932,-400.0,0.00025479,2]
[383563948,1756990330943,-400.0,0.00025479,2]
[383563949,1756990330953,-456.03,0.00025479,2]
[383563950,1756990330963,-237.28310939,0.00025479,2]
[383563951,1756990330973,-400.0,0.00025479,2]
[383563952,1756990330983,-198.58250139,0.00025479,2]
[383563953,1756990330992,-400.0,0.00025479,2]
[383563954,1756990331002,-945.14,0.00025479,2]
[383563955,1756990331012,-400.0,0.00025479,2]
[383563956,1756990331023,-400.0,0.00025479,2]
[383563957,1756990331032,-424.49578308,0.00025479,2]
[383563958,1756990331043,-400.0,0.00025479,2]
[383563959,1756990331053,-953.11,0.00025479,2]
[383563960,1756990331063,-400.0,0.00025479,2]
[383563961,1756990331072,-400.0,0.00025479,2]
[383563962,1756990331084,-821.03,0.00025479,2]
[383563963,1756990331095,-1693.2,0.00025479,2]
[383563964,1756990331106,-1079.3,0.00025479,2]
[383563965,1756990331116,-400.0,0.00025479,2]
[383563966,1756990331127,-624.18,0.00025479,2]
[383563967,1756990331137,-400.0,0.00025479,2]
[383563968,1756990331147,-400.0,0.00025479,2]
[383563969,1756990331158,-2782.05,0.00025479,2]
[383563970,1756990331168,-400.0,0.00025479,2]
[383563971,1756990331178,-725.37,0.00025479,2]
[383563972,1756990331188,-421.94,0.00025479,2]
[383563973,1756990331198,-685.21,0.00025479,2]
[383563974,1756990331208,-310.28,0.00025479,2]
[383563975,1756990331219,-1587.17,0.00025479,2]
[383563976,1756990331228,-931.71,0.00025479,2]
[383563977,1756990331239,-400.0,0.00025479,2]
[383563978,1756990331250,-2135.57,0.00025479,2]
[383563979,1756990331260,-1227.09,0.00025479,2]
[383563980,1756990331271,-625.05,0.00025479,2]
[383563981,1756990331281,-474.56,0.00025479,2]
[383563982,1756990331292,-749.93,0.00025479,2]
[383563983,1756990331303,-432.88689262,0.00025479,2]
[383563984,1756990331313,-638.66,0.00025479,2]
[383563985,1756990331323,-508.97,0.00025479,2]
[383563986,1756990331333,-211.43220313,0.00025479,2]
[383563987,1756990331343,-400.0,0.00025479,2]
[383563988,1756990331352,-400.0,0.00025479,2]
[383563989,1756990331363,-400.0,0.00025479,2]
[383563990,1756990331372,-3593.96,0.00025479,2]
[383563991,1756990331380,-1070.95,0.00025479,2]
[383563992,1756990331390,-400.0,0.00025479,2]
[383563993,1756990331399,-3019.97,0.00025479,2]
[383563994,1756990331409,-2175.07,0.00025479,2]
[383563995,1756990331419,-400.0,0.00025479,2]
[383563996,1756990331429,-400.0,0.00025479,2]
[383563997,1756990331439,-400.0,0.00025479,2]
[383563998,1756990331449,-400.0,0.00025479,2]
[383563999,1756990331459,-189.26326661,0.00025479,2]
[383564000,1756990331469,-2082.36,0.00025479,2]
[383564001,1756990331479,-400.0,0.00025479,2]
[383564002,1756990331489,-400.0,0.00025479,2]
[383564003,1756990331499,-970.38,0.00025479,2]
[383564004,1756990331509,-1127.96,0.00025479,2]
[383564005,1756990331520,-2243.08,0.00025479,2]
[383564006,1756990331529,-1735.62,0.00025479,2]
[383564007,1756990331543,-1045.07,0.00025479,2]
[383564008,1756990331554,-731.72,0.00025479,2]
[383564009,1756990331565,-400.0,0.00025479,2]
[383564010,1756990331577,-400.0,0.00025479,2]
[383564011,1756990331588,-998.96,0.00025479,2]
[383564012,1756990331790,-400.0,0.00025479,2]
[383564013,1756990331800,-709.73,0.00025479,2]
[383564014,1756990331811,-2831.28,0.00025479,2]
[383564015,1756990331821,-3039.71,0.00025479,2]
[383564016,1756990331831,-898.29,0.00025479,2]
[383564017,1756990331840,-1689.73,0.00025479,2]
[383564018,1756990331850,-454.51,0.00025479,2]
[383564019,1756990331860,-449.75,0.00025479,2]
[383564020,1756990331870,-402.85,0.00025479,2]
[383564021,1756990331880,-435.81,0.00025479,2]
[383564022,1756990331889,-579.58,0.00025479,2]
[383564023,1756990331899,-479.95082492,0.00025479,2]
[383564024,1756990331909,-502.24890737,0.00025479,2]
[383564025,1756990331919,-996.93,0.00025479,2]
[383564026,1756990331929,-1061.82,0.00025479,2]
[383564027,1756990331943,-400.0,0.00025479,2]
[383564028,1756990331953,-608.48,0.00025479,2]
[383564029,1756990331963,-1216.81,0.00025479,2]
[383564030,1756990331974,-2520.02,0.00025479,2]
[383564031,1756990331983,-1569.91,0.00025479,2]
[383564032,1756990331993,-400.0,0.00025479,2]
[383564033,1756990332003,-1782.09,0.00025479,2]
[383564034,1756990332014,-376.58003653,0.00025479,2]
[383564035,1756990332023,-400.0,0.00025479,2]
[383564036,1756990332032,-1565.66,0.00025479,2]
[383564037,1756990332041,-967.5,0.00025479,2]
[383564038,1756990332050,-1736.13,0.00025479,2]
[383564039,1756990332059,-841.07,0.00025479,2]
[383564040,1756990332067,-400.0,0.00025479,2]
[383564041,1756990332076,-400.0,0.00025479,2]
[383564042,1756990332085,-400.0,0.00025479,2]
[383564043,1756990332094,-941.19,0.00025479,2]
[383564044,1756990332104,-400.0,0.00025479,2]
[383564045,1756990332113,-656.44,0.00025479,2]
[383564046,1756990332122,-1999.99,0.00025479,2]
[383564047,1756990332130,-410.63995653,0.00025479,2]
[383564048,1756990332139,-400.0,0.00025479,2]
[383564049,1756990332148,-400.0,0.00025479,2]
[383564050,1756990332159,-1565.3,0.00025479,2]
[383564051,1756990332168,-1135.36,0.00025479,2]
[383564052,1756990332178,-455.15,0.00025479,2]
[383564053,1756990332187,-3100.45,0.00025479,2]
[383564054,1756990332197,-708.51,0.00025479,2]
[383564055,1756990332206,-400.0,0.00025479,2]
[383564056,1756990332215,-945.65,0.00025479,2]
[383564057,1756990332224,-459.56,0.00025479,2]
[383564058,1756990332233,-742.75,0.00025479,2]
[383564059,1756990332243,-277.41,0.00025479,2]
[383564060,1756990332252,-236.63732602,0.00025479,2]
[383564061,1756990332266,-500.0,0.0002548,2]
[383564062,1756990332273,-150.0,0.0002549,2]
[383564063,1756990332281,-179.78,0.0002549,2]
[383564064,1756990332288,-150.0,0.0002549,2]
[383564065,1756990332296,-1000.0,0.00025505,2]
[383564066,1756990332303,-150.0,0.0002552,5]
[383564067,1756990332310,-400.0,0.00025561,2]
[383564068,1756990332317,-400.0,0.00025561,2]
[383564069,1756990332324,-350.15859297,0.00025561,2]
[383564070,1756990332331,-6679.88,0.00025561,2]
[383564071,1756990332339,-956.54,0.00025561,2]
[383564072,1756990332347,-484.69,0.00025561,2]
[383564073,1756990332353,-471.21,0.00025561,2]
[383564074,1756990332360,-848.28,0.00025561,2]
[383564075,1756990332369,-400.0,0.00025561,2]
[383564076,1756990332377,-876.27,0.00025561,2]
[383564077,1756990332385,-5513.0,0.000256,3]
[383564078,1756990332393,-500.0,0.00025617,2]
[383564079,1756990332400,-168.62963791,0.000257,2]
[383564080,1756990332408,-309.29654756,0.00025737,2]
[383564081,1756990332416,-1300.0,0.00025753,2]
[383564082,1756990332425,-422.37,0.00025753,2]
[383564083,1756990332432,-400.0,0.00025753,2]
[383564084,1756990332439,-400.0,0.00025753,2]
[383564085,1756990332446,-492.66,0.00025753,2]
[383564086,1756990332452,-400.0,0.00025753,2]
[383564087,1756990332460,-400.0,0.00025753,2]
[383564088,1756990332467,-400.0,0.00025753,2]
[383564089,1756990332478,-400.0,0.00025753,2]
[383564090,1756990332488,-400.0,0.00025753,2]
[383564091,1756990332496,-204.850015,0.00025753,2]
[383564092,1756990332504,-159.517876,0.00025753,2]
[383564093,1756990332513,-237.602869,0.00025753,2]
[383564094,1756990332523,-412.66,0.00025753,2]
[383564095,1756990332532,-761.63,0.00025753,2]
[383564096,1756990332543,-1219.37,0.00025753,2]
[383564097,1756990332554,-400.0,0.00025753,2]
[383564098,1756990332564,-661.99,0.00025753,2]
[383564099,1756990332573,-575.08,0.00025753,2]
[383564100,1756990332583,-488.92659424,0.00025753,2]
[383564101,1756990332592,-411.91,0.00025753,2]
[383564102,1756990332602,-400.0,0.00025753,2]
[383564103,1756990332611,-400.0,0.00025753,2]
[383564104,1756990332619,-400.0,0.00025753,2]
[383564105,1756990332629,-448.57,0.00025753,2]
[383564106,1756990332639,-400.0,0.00025753,2]
[383564107,1756990332649,-400.0,0.00025753,2]
[383564108,1756990332660,-400.0,0.00025753,2]
[383564109,1756990332670,-402.8,0.00025753,2]
[383564110,1756990332680,-400.0,0.00025753,2]
[383564111,1756990332691,-414.4,0.00025753,2]
[383564112,1756990332702,-400.0,0.00025753,2]
[383564113,1756990332712,-186.66483462,0.00025753,2]
[383564114,1756990332722,-318.75537996,0.00025753,2]
[383564115,1756990332732,-400.0,0.00025753,2]
[383564116,1756990332744,-507.84010963,0.00025753,2]
[383564117,1756990332758,-463.59,0.00025753,2]
[383564118,1756990332767,-400.0,0.00025753,2]
[383564119,1756990332778,-423.94,0.00025753,2]
[383564120,1756990332792,-495.23,0.00025753,2]
[383564121,1756990332802,-565.94,0.00025753,2]
[383564122,1756990332812,-400.0,0.00025753,2]
[383564123,1756990332823,-400.0,0.00025753,2]
[383564124,1756990332834,-400.0,0.00025753,2]
[383564125,1756990332844,-466.1,0.00025753,2]
[383564126,1756990332855,-400.0,0.00025753,2]
[383564127,1756990332865,-400.0,0.00025753,2]
[383564128,1756990332875,-456.03,0.00025753,2]
[383564129,1756990332885,-400.0,0.00025753,2]
[383564130,1756990332895,-433.99706949,0.00025753,2]
[383564131,1756990332905,-945.14,0.00025753,2]
[383564132,1756990332915,-400.0,0.00025753,2]
[383564133,1756990332925,-400.0,0.00025753,2]
[383564134,1756990332938,-400.0,0.00025753,2]
[383564135,1756990332948,-953.11,0.00025753,2]
[383564136,1756990332957,-400.0,0.00025753,2]
[383564137,1756990332967,-400.0,0.00025753,2]
[383564138,1756990332976,-821.03,0.00025753,2]
[383564139,1756990332986,-1693.2,0.00025753,2]
[383564140,1756990332997,-1079.3,0.00025753,2]
[383564141,1756990333007,-400.0,0.00025753,2]
[383564142,1756990333016,-624.18,0.00025753,2]
[383564143,1756990333026,-400.0,0.00025753,2]
[383564144,1756990333036,-400.0,0.00025753,2]
[383564145,1756990333046,-2782.05,0.00025753,2]
[383564146,1756990333056,-400.0,0.00025753,2]
[383564147,1756990333066,-725.37,0.00025753,2]
[383564148,1756990333076,-421.94,0.00025753,2]
[383564149,1756990333086,-685.21,0.00025753,2]
[383564150,1756990333097,-1587.17,0.00025753,2]
[383564151,1756990333106,-931.71,0.00025753,2]
[383564152,1756990333115,-400.0,0.00025753,2]
[383564153,1756990333124,-2135.57,0.00025753,2]
[383564154,1756990333134,-1227.09,0.00025753,2]
[383564155,1756990333143,-625.05,0.00025753,2]
[383564156,1756990333154,-474.56,0.00025753,2]
[383564157,1756990333164,-749.93,0.00025753,2]
[383564158,1756990333173,-638.66,0.00025753,2]
[383564159,1756990333183,-508.97,0.00025753,2]
[383564160,1756990333192,-400.0,0.00025753,2]
[383564161,1756990333201,-400.0,0.00025753,2]
[383564162,1756990333210,-400.0,0.00025753,2]
[383564163,1756990333219,-3593.96,0.00025753,2]
[383564164,1756990333229,-1070.95,0.00025753,2]
[383564165,1756990333239,-280.31,0.00025753,2]
[383564166,1756990333248,-3019.97,0.00025753,2]
[383564167,1756990333258,-2175.07,0.00025753,2]
[383564168,1756990333267,-400.0,0.00025753,2]
[383564169,1756990333276,-400.0,0.00025753,2]
[383564170,1756990333286,-400.0,0.00025753,2]
[383564171,1756990333296,-400.0,0.00025753,2]
[383564172,1756990333305,-2082.36,0.00025753,2]
[383564173,1756990333315,-400.0,0.00025753,2]
[383564174,1756990333324,-400.0,0.00025753,2]
[383564175,1756990333334,-970.38,0.00025753,2]
[383564176,1756990333343,-1127.96,0.00025753,2]
[383564177,1756990333352,-2243.08,0.00025753,2]
[383564178,1756990333361,-1735.62,0.00025753,2]
[383564179,1756990333370,-1045.07,0.00025753,2]
[383564180,1756990333379,-731.72,0.00025753,2]
[383564181,1756990333388,-428.65447684,0.00025753,2]
[383564182,1756990333398,-998.96,0.00025753,2]
[383564183,1756990333408,-400.0,0.00025753,2]
[383564184,1756990333418,-444.89689841,0.00025753,2]
[383564185,1756990333427,-709.73,0.00025753,2]
[383564186,1756990333437,-2831.28,0.00025753,2]
[383564187,1756990333446,-3039.71,0.00025753,2]
[383564188,1756990333456,-898.29,0.00025753,2]
[383564189,1756990333465,-1689.73,0.00025753,2]
[383564190,1756990333474,-454.51,0.00025753,2]
[383564191,1756990333483,-449.75,0.00025753,2]
[383564192,1756990333492,-402.85,0.00025753,2]
[383564193,1756990333501,-435.81,0.00025753,2]
[383564194,1756990333515,-579.58,0.00025753,2]
[383564195,1756990333525,-996.93,0.00025753,2]
[383564196,1756990333535,-1061.82,0.00025753,2]
[383564197,1756990333544,-400.0,0.00025753,2]
[383564198,1756990333554,-608.48,0.00025753,2]
[383564199,1756990333564,-1216.81,0.00025753,2]
[383564200,1756990333573,-2520.02,0.00025753,2]
[383564201,1756990333582,-1569.91,0.00025753,2]
[383564202,1756990333591,-400.0,0.00025753,2]
[383564203,1756990333601,-1782.09,0.00025753,2]
[383564204,1756990333610,-400.0,0.00025753,2]
[383564205,1756990333619,-1565.66,0.00025753,2]
[383564206,1756990333629,-967.5,0.00025753,2]
[383564207,1756990333638,-1736.13,0.00025753,2]
[383564208,1756990333648,-841.07,0.00025753,2]
[383564209,1756990333658,-400.0,0.00025753,2]
[383564210,1756990333667,-400.0,0.00025753,2]
[383564211,1756990333677,-400.0,0.00025753,2]
[383564212,1756990333686,-941.19,0.00025753,2]
[383564213,1756990333695,-400.0,0.00025753,2]
[383564214,1756990333705,-656.44,0.00025753,2]
[383564215,1756990333715,-1999.99,0.00025753,2]
[383564216,1756990333724,-411.32321964,0.00025753,2]
[383564217,1756990333733,-400.0,0.00025753,2]
[383564218,1756990333742,-1565.3,0.00025753,2]
[383564219,1756990333752,-1135.36,0.00025753,2]
[383564220,1756990333762,-455.15,0.00025753,2]
[383564221,1756990333771,-3100.45,0.00025753,2]
[383564222,1756990333780,-708.51,0.00025753,2]
[383564223,1756990333788,-219.99089726,0.00025753,2]
[383564224,1756990333796,-945.65,0.00025753,2]
[383564225,1756990333804,-459.56,0.00025753,2]
[383564226,1756990333813,-742.75,0.00025753,2]
[383564227,1756990333821,-500.0,0.00025754,2]
[383564228,1756990333830,-400.0,0.00025835,2]
[383564229,1756990333839,-400.0,0.00025835,2]
[383564230,1756990333848,-6679.88,0.00025835,2]
[383564231,1756990333857,-956.54,0.00025835,2]
[383564232,1756990333867,-484.69,0.00025835,2]
[383564233,1756990333875,-471.21,0.00025835,2]
[383564234,1756990333885,-848.28,0.00025835,2]
[383564235,1756990333895,-400.0,0.00025835,2]
[383564236,1756990333904,-876.27,0.00025835,2]
[383564237,1756990333914,-500.0,0.00025891,2]
[383564238,1756990333923,-4089.07,0.000259,7]
[383564239,1756990333936,-300.0,0.000259,9]
[383564240,1756990333946,-206.0,0.0002592,2]
[383564241,1756990333955,-600.0,0.00025946,2]
[383564242,1756990333964,-200000.0,0.00026,2]
[383564243,1756990333975,-1022.26,0.00026,7]
[383564244,1756990333985,-1069.54,0.00026,2]
[383564245,1756990333994,-1089.44,0.00026,7]
[383564246,1756990334004,-1057.62,0.00026,7]
[383564247,1756990334120,-10190.33947938,0.0002601,4]
[383564248,1756990334130,-171.54142031,0.00026011,2]
[383564249,1756990334139,-422.37,0.00026027,2]
[383564250,1756990334148,-400.0,0.00026027,2]
[383564251,1756990334159,-400.0,0.00026027,2]
[383564252,1756990334168,-492.66,0.00026027,2]
[383564253,1756990334177,-400.0,0.00026027,2]
[383564254,1756990334186,-400.0,0.00026027,2]
[383564255,1756990334195,-400.0,0.00026027,2]
[383564256,1756990334205,-400.0,0.00026027,2]
[383564257,1756990334214,-448.77829538,0.00026027,2]
[383564258,1756990334224,-204.850015,0.00026027,2]
[383564259,1756990334233,-237.602869,0.00026027,2]
[383564260,1756990334242,-412.66,0.00026027,2]
[383564261,1756990334251,-761.63,0.00026027,2]
[383564262,1756990334261,-1219.37,0.00026027,2]
[383564263,1756990334270,-400.0,0.00026027,2]
[383564264,1756990334280,-661.99,0.00026027,2]
[383564265,1756990334289,-575.08,0.00026027,2]
[383564266,1756990334298,-411.91,0.00026027,2]
[383564267,1756990334308,-450.2,0.00026027,2]
[383564268,1756990334317,-296.09676626,0.00026027,2]
[383564269,1756990334326,-400.0,0.00026027,2]
[383564270,1756990334336,-435.72182576,0.00026027,2]